[Event "Titled Tuesday Blitz September 27 Early 2022"]
[White "Sai Han Thiha"]
[Black "Harsha Bharathakoti"]
[WhiteFideId "13012290"]
[BlackFideId "5078776"]
[WhiteElo "1791"]
[BlackElo "2523"]
[Result "1/2-1/2"]
[Round "02"]
[TimeControl "180+1"]
[Date "2022.09.27"]
[WhiteClock "0:00:16"]
[BlackClock "0:00:08"]

1. d4 {[%clk 0:03:00]}  e6 {[%clk 0:03:00]} 2. Nf3 {[%clk 0:02:59]}  c5 {[%clk 0:02:59]} 3. c3 {[%clk 0:02:52]}  Nf6 {[%clk 0:02:58]} 4. Bf4 {[%clk 0:02:52]}  cxd4 {[%clk 0:02:58]} 5. cxd4 {[%clk 0:02:52]}  Qb6 {[%clk 0:02:59]} 6. Qb3 {[%clk 0:02:43]}  Qxb3 {[%clk 0:02:59]} 7. axb3 {[%clk 0:02:44]}  Nc6 {[%clk 0:02:59]} 8. Nc3 {[%clk 0:02:42]}  Bb4 {[%clk 0:02:41]} 9. Bd2 {[%clk 0:02:30]}  d5 {[%clk 0:02:37]} 10. e3 {[%clk 0:02:29]}  Bd7 {[%clk 0:02:35]} 11. Bd3 {[%clk 0:02:21]}  Ke7 {[%clk 0:02:13]} 12. Ke2 {[%clk 0:02:21]}  Rhc8 {[%clk 0:02:13]} 13. Rhc1 {[%clk 0:02:21]}  Na5 {[%clk 0:01:53]} 14. Nxd5+ {[%clk 0:01:35]}  Nxd5 {[%clk 0:01:54]} 15. Bxb4+ {[%clk 0:01:35]}  Nxb4 {[%clk 0:01:54]} 16. Rxc8 {[%clk 0:01:36]}  Rxc8 {[%clk 0:01:46]} 17. Rxa5 {[%clk 0:01:36]}  a6 {[%clk 0:01:40]} 18. Ra1 {[%clk 0:01:26]}  Bb5 {[%clk 0:01:33]} 19. Bxb5 {[%clk 0:01:20]}  Rc2+ {[%clk 0:01:33]} 20. Kf1 {[%clk 0:01:06]}  axb5 {[%clk 0:01:33]} 21. Ne1 {[%clk 0:00:56]}  Rxb2 {[%clk 0:01:32]} 22. Ra7 {[%clk 0:00:57]}  Rb1 {[%clk 0:01:18]} 23. Rxb7+ {[%clk 0:00:55]}  Kf6 {[%clk 0:01:19]} 24. Ke2 {[%clk 0:00:56]}  Rb2+ {[%clk 0:01:19]} 25. Kf3 {[%clk 0:00:45]}  Nd5 {[%clk 0:00:51]} 26. Rxb5 {[%clk 0:00:44]}  Nc3 {[%clk 0:00:51]} 27. Rb7 {[%clk 0:00:43]}  Nd1 {[%clk 0:00:42]} 28. Nd3 {[%clk 0:00:42]}  Rd2 {[%clk 0:00:43]} 29. Ne5 {[%clk 0:00:24]}  Rxf2+ {[%clk 0:00:43]} 30. Ke4 {[%clk 0:00:21]}  Kg5 {[%clk 0:00:28]} 31. Nxf7+ {[%clk 0:00:22]}  Kh5 {[%clk 0:00:24]} 32. g3 {[%clk 0:00:19]}  Rxh2 {[%clk 0:00:20]} 33. Nd8 {[%clk 0:00:20]}  Kh6 {[%clk 0:00:12]} 34. Nxe6 {[%clk 0:00:20]}  g6 {[%clk 0:00:13]} 35. d5 {[%clk 0:00:20]}  Rd2 {[%clk 0:00:11]} 36. Nf8 {[%clk 0:00:19]}  Nc3+ {[%clk 0:00:11]} 37. Kf4 {[%clk 0:00:18]}  Nxd5+ {[%clk 0:00:11]} 38. Kg4 {[%clk 0:00:18]}  Nxe3+ {[%clk 0:00:11]} 39. Kf3 {[%clk 0:00:17]}  Rd3 {[%clk 0:00:08]} 40. Ke4 {[%clk 0:00:16]}  Rc3 {[%clk 0:00:09]} 41. Rxh7+ {[%clk 0:00:16]}  Kg5 {[%clk 0:00:09]} 42. Ne6+ {[%clk 0:00:16]}  Kg4 {[%clk 0:00:09]} 43. Rg7 {[%clk 0:00:14]}  Rxb3 {[%clk 0:00:07]} 44. Rxg6+ {[%clk 0:00:14]}  Kh3 {[%clk 0:00:08]} 45. Nf4+ {[%clk 0:00:13]}  Kh2 {[%clk 0:00:08]} 46. g4 {[%clk 0:00:13]}  Kg3 {[%clk 0:00:06]} 47. Nd5 {[%clk 0:00:12]}  Nc4 {[%clk 0:00:05]} 48. Kd4 {[%clk 0:00:12]}  Nd2 {[%clk 0:00:04]} 49. Rg8 {[%clk 0:00:12]}  Nf3+ {[%clk 0:00:04]} 50. Kc5 {[%clk 0:00:12]}  Ra3 {[%clk 0:00:03]} 51. Kb4 {[%clk 0:00:12]}  Rd3 {[%clk 0:00:03]} 52. Nf6 {[%clk 0:00:12]}  Rd4+ {[%clk 0:00:04]} 53. Kc5 {[%clk 0:00:12]}  Rd1 {[%clk 0:00:04]} 54. Ne4+ {[%clk 0:00:13]}  Kf4 {[%clk 0:00:04]} 55. Nf6 {[%clk 0:00:13]}  Rc1+ {[%clk 0:00:05]} 56. Kd6 {[%clk 0:00:13]}  Re1 {[%clk 0:00:05]} 57. Nd5+ {[%clk 0:00:13]}  Kg3 {[%clk 0:00:05]} 58. g5 {[%clk 0:00:14]}  Nh4 {[%clk 0:00:04]} 59. g6 {[%clk 0:00:13]}  Ra1 {[%clk 0:00:04]} 60. g7 {[%clk 0:00:13]}  Ra7 {[%clk 0:00:05]} 61. Nc7 {[%clk 0:00:13]}  Nf5+ {[%clk 0:00:03]} 62. Kc6 {[%clk 0:00:13]}  Ne7+ {[%clk 0:00:03]} 63. Kb6 {[%clk 0:00:12]}  Rxc7 {[%clk 0:00:03]} 64. Kxc7 {[%clk 0:00:13]}  Nxg8 {[%clk 0:00:03]} 65. Kd6 {[%clk 0:00:13]}  Kg4 {[%clk 0:00:04]} 66. Ke6 {[%clk 0:00:14]}  Kg5 {[%clk 0:00:05]} 67. Kf7 {[%clk 0:00:15]}  Nh6+ {[%clk 0:00:06]} 68. Kf8 {[%clk 0:00:15]}  Kg6 {[%clk 0:00:07]} 69. g8=Q+ {[%clk 0:00:16]}  Nxg8 {[%clk 0:00:08]} 1/2-1/2


[Site "https://www.chess.com"]

[Event "Titled Tuesday Blitz September 27 Early 2022"]
[White "Sailer, Mike"]
[Black "Toncheva, Nadya"]
[WhiteFideId "2012901"]
[BlackFideId "2924056"]
[WhiteElo "2109"]
[BlackElo "1888"]
[Result "0-1"]
[Round "02"]
[TimeControl "180+1"]
[Date "2022.09.27"]
[WhiteClock "0:00:08"]
[BlackClock "0:00:30"]

1. d4 {[%clk 0:03:00]}  Nf6 {[%clk 0:02:59]} 2. Nc3 {[%clk 0:03:00]}  d5 {[%clk 0:02:59]} 3. Bf4 {[%clk 0:03:01]}  Bf5 {[%clk 0:02:57]} 4. f3 {[%clk 0:03:01]}  h6 {[%clk 0:02:56]} 5. g4 {[%clk 0:03:00]}  Bh7 {[%clk 0:02:56]} 6. e3 {[%clk 0:02:58]}  e6 {[%clk 0:02:56]} 7. Bd3 {[%clk 0:02:58]}  Bxd3 {[%clk 0:02:55]} 8. Qxd3 {[%clk 0:02:58]}  a6 {[%clk 0:02:56]} 9. O-O-O {[%clk 0:02:53]}  c5 {[%clk 0:02:44]} 10. Nge2 {[%clk 0:02:45]}  Nc6 {[%clk 0:02:40]} 11. h4 {[%clk 0:02:39]}  Rc8 {[%clk 0:02:25]} 12. g5 {[%clk 0:02:27]}  Nh5 {[%clk 0:02:25]} 13. gxh6 {[%clk 0:02:27]}  Nxf4 {[%clk 0:02:24]} 14. Nxf4 {[%clk 0:02:21]}  Rxh6 {[%clk 0:02:23]} 15. dxc5 {[%clk 0:01:57]}  Bxc5 {[%clk 0:02:18]} 16. e4 {[%clk 0:01:53]}  Ne5 {[%clk 0:01:59]} 17. Qe2 {[%clk 0:01:45]}  d4 {[%clk 0:01:51]} 18. Qg2 {[%clk 0:01:02]}  Qf6 {[%clk 0:01:36]} 19. Ncd5 {[%clk 0:00:50]}  exd5 {[%clk 0:01:25]} 20. Nxd5 {[%clk 0:00:50]}  Qg6 {[%clk 0:01:17]} 21. Qh3 {[%clk 0:00:48]}  Qe6 {[%clk 0:00:52]} 22. Qg3 {[%clk 0:00:31]}  Kf8 {[%clk 0:00:49]} 23. Nf4 {[%clk 0:00:23]}  Qxa2 {[%clk 0:00:47]} 24. Rhg1 {[%clk 0:00:14]}  Qa1+ {[%clk 0:00:29]} 25. Kd2 {[%clk 0:00:14]}  Bb4+ {[%clk 0:00:30]} 26. Ke2 {[%clk 0:00:10]}  Rxc2+ {[%clk 0:00:30]} 27. Kf1 {[%clk 0:00:08]}  Qxd1+ {[%clk 0:00:30]} 0-1


[Site "https://www.chess.com"]

[Event "Titled Tuesday Blitz September 27 Early 2022"]
[White "Sanchez Alvares, Kelvin Antonio"]
[Black "Roque Sola, Jose Luis"]
[WhiteFideId "3906680"]
[BlackFideId "5120390"]
[WhiteElo "2189"]
[BlackElo "1990"]
[Result "1/2-1/2"]
[Round "02"]
[TimeControl "180+1"]
[Date "2022.09.27"]
[WhiteClock "0:01:18"]
[BlackClock "0:00:19"]

1. e4 {[%clk 0:03:00]}  e6 {[%clk 0:02:59]} 2. d4 {[%clk 0:03:00]}  d5 {[%clk 0:02:58]} 3. Nd2 {[%clk 0:03:00]}  c5 {[%clk 0:02:57]} 4. exd5 {[%clk 0:02:59]}  Qxd5 {[%clk 0:02:56]} 5. Ngf3 {[%clk 0:02:59]}  cxd4 {[%clk 0:02:56]} 6. Bc4 {[%clk 0:02:59]}  Qd8 {[%clk 0:02:55]} 7. O-O {[%clk 0:02:59]}  Nf6 {[%clk 0:02:55]} 8. Nb3 {[%clk 0:02:59]}  Nc6 {[%clk 0:02:55]} 9. Nbxd4 {[%clk 0:02:59]}  Nxd4 {[%clk 0:02:56]} 10. Qxd4 {[%clk 0:02:59]}  Qxd4 {[%clk 0:02:55]} 11. Nxd4 {[%clk 0:03:00]}  a6 {[%clk 0:02:55]} 12. c3 {[%clk 0:02:58]}  Bd6 {[%clk 0:02:18]} 13. a4 {[%clk 0:02:46]}  O-O {[%clk 0:02:18]} 14. h3 {[%clk 0:02:44]}  b6 {[%clk 0:02:15]} 15. Bg5 {[%clk 0:02:37]}  Ne4 {[%clk 0:02:08]} 16. Be3 {[%clk 0:02:36]}  Bb7 {[%clk 0:02:06]} 17. Rfd1 {[%clk 0:02:35]}  Rfd8 {[%clk 0:01:51]} 18. Nb3 {[%clk 0:02:26]}  Nc5 {[%clk 0:01:37]} 19. Nxc5 {[%clk 0:02:21]}  Bxc5 {[%clk 0:01:37]} 20. Bxc5 {[%clk 0:02:21]}  bxc5 {[%clk 0:01:38]} 21. a5 {[%clk 0:02:18]}  Kf8 {[%clk 0:01:34]} 22. Kf1 {[%clk 0:02:17]}  Ke7 {[%clk 0:01:34]} 23. f3 {[%clk 0:02:13]}  Rxd1+ {[%clk 0:01:31]} 24. Rxd1 {[%clk 0:02:13]}  Rd8 {[%clk 0:01:31]} 25. Rxd8 {[%clk 0:02:12]}  Kxd8 {[%clk 0:01:32]} 26. Ke2 {[%clk 0:02:12]}  Kc7 {[%clk 0:01:32]} 27. Ke3 {[%clk 0:02:08]}  Kd6 {[%clk 0:01:32]} 28. g3 {[%clk 0:02:07]}  f6 {[%clk 0:01:28]} 29. h4 {[%clk 0:02:05]}  e5 {[%clk 0:01:17]} 30. b4 {[%clk 0:02:01]}  cxb4 {[%clk 0:01:16]} 31. cxb4 {[%clk 0:02:01]}  Bc8 {[%clk 0:01:11]} 32. Bd3 {[%clk 0:01:58]}  g6 {[%clk 0:01:08]} 33. f4 {[%clk 0:01:48]}  exf4+ {[%clk 0:01:07]} 34. Kxf4 {[%clk 0:01:47]}  Kd5 {[%clk 0:00:54]} 35. b5 {[%clk 0:01:42]}  axb5 {[%clk 0:00:53]} 36. Bxb5 {[%clk 0:01:41]}  Kc5 {[%clk 0:00:53]} 37. Be2 {[%clk 0:01:39]}  Kc6 {[%clk 0:00:46]} 38. Ke4 {[%clk 0:01:27]}  Kc5 {[%clk 0:00:45]} 39. a6 {[%clk 0:01:22]}  Kb6 {[%clk 0:00:45]} 40. Kd5 {[%clk 0:01:22]}  h6 {[%clk 0:00:34]} 41. Kd6 {[%clk 0:01:21]}  g5 {[%clk 0:00:34]} 42. h5 {[%clk 0:01:20]}  f5 {[%clk 0:00:31]} 43. Ke5 {[%clk 0:01:20]}  f4 {[%clk 0:00:19]} 44. gxf4 {[%clk 0:01:19]}  gxf4 {[%clk 0:00:19]} 45. Kxf4 {[%clk 0:01:19]}  Bd7 {[%clk 0:00:19]} 46. Ke5 {[%clk 0:01:18]}  Be8 {[%clk 0:00:19]} 1/2-1/2


[Site "https://www.chess.com"]

[Event "Titled Tuesday Blitz September 27 Early 2022"]
[White "Sanchez, Robert"]
[Black "Matinian, Nikita"]
[WhiteFideId "2034360"]
[BlackFideId "24129100"]
[WhiteElo "2386"]
[BlackElo "2422"]
[Result "1-0"]
[Round "02"]
[TimeControl "180+1"]
[Date "2022.09.27"]
[WhiteClock "0:00:19"]
[BlackClock "0:01:19"]

1. e4 {[%clk 0:03:00]}  c5 {[%clk 0:02:59]} 2. Nf3 {[%clk 0:03:01]}  Nc6 {[%clk 0:02:59]} 3. d4 {[%clk 0:03:00]}  cxd4 {[%clk 0:03:00]} 4. Nxd4 {[%clk 0:03:01]}  Nf6 {[%clk 0:03:00]} 5. Nc3 {[%clk 0:03:02]}  e5 {[%clk 0:03:00]} 6. Ndb5 {[%clk 0:03:02]}  d6 {[%clk 0:03:00]} 7. Bg5 {[%clk 0:03:01]}  a6 {[%clk 0:03:01]} 8. Bxf6 {[%clk 0:03:01]}  gxf6 {[%clk 0:03:00]} 9. Na3 {[%clk 0:03:01]}  b5 {[%clk 0:03:00]} 10. Nd5 {[%clk 0:03:01]}  f5 {[%clk 0:03:00]} 11. Bd3 {[%clk 0:02:58]}  Be6 {[%clk 0:02:59]} 12. c4 {[%clk 0:02:58]}  b4 {[%clk 0:02:55]} 13. Nc2 {[%clk 0:02:58]}  Rb8 {[%clk 0:02:50]} 14. exf5 {[%clk 0:02:57]}  Bxd5 {[%clk 0:02:45]} 15. cxd5 {[%clk 0:02:57]}  Ne7 {[%clk 0:02:44]} 16. Ne3 {[%clk 0:02:43]}  Qa5 {[%clk 0:02:39]} 17. O-O {[%clk 0:02:41]}  h5 {[%clk 0:02:30]} 18. f6 {[%clk 0:02:30]}  Ng6 {[%clk 0:02:29]} 19. Bxg6 {[%clk 0:02:13]}  fxg6 {[%clk 0:02:28]} 20. f4 {[%clk 0:02:04]}  Bh6 {[%clk 0:02:27]} 21. Qd3 {[%clk 0:01:51]}  Qc5 {[%clk 0:02:15]} 22. Rac1 {[%clk 0:01:34]}  Qa7 {[%clk 0:02:15]} 23. Qxg6+ {[%clk 0:01:14]}  Qf7 {[%clk 0:02:13]} 24. Qe4 {[%clk 0:01:10]}  O-O {[%clk 0:02:10]} 25. fxe5 {[%clk 0:01:01]}  dxe5 {[%clk 0:02:11]} 26. d6 {[%clk 0:00:48]}  Rbd8 {[%clk 0:02:07]} 27. Rc7 {[%clk 0:00:38]}  Bxe3+ {[%clk 0:02:01]} 28. Qxe3 {[%clk 0:00:33]}  Rd7 {[%clk 0:01:58]} 29. Rxd7 {[%clk 0:00:33]}  Qxd7 {[%clk 0:01:59]} 30. Qxe5 {[%clk 0:00:33]}  Qa7+ {[%clk 0:01:50]} 31. Kh1 {[%clk 0:00:33]}  Qf7 {[%clk 0:01:51]} 32. Qg5+ {[%clk 0:00:28]}  Kh7 {[%clk 0:01:50]} 33. Re1 {[%clk 0:00:26]}  Rg8 {[%clk 0:01:33]} 34. Qf5+ {[%clk 0:00:24]}  Kh6 {[%clk 0:01:34]} 35. Re7 {[%clk 0:00:20]}  Qg6 {[%clk 0:01:18]} 36. Qxg6+ {[%clk 0:00:20]}  Kxg6 {[%clk 0:01:19]} 37. Rg7+ {[%clk 0:00:19]} 1-0


[Site "https://www.chess.com"]

[Event "Titled Tuesday Blitz September 27 Early 2022"]
[White "Sargissyan, Sargis"]
[Black "Schill, William"]
[WhiteFideId "13303210"]
[BlackFideId "2016710"]
[WhiteElo "2102"]
[BlackElo "1937"]
[Result "1-0"]
[Round "02"]
[TimeControl "180+1"]
[Date "2022.09.27"]
[WhiteClock "0:00:11"]
[BlackClock "0:00:00"]

1. e4 {[%clk 0:03:00]}  c5 {[%clk 0:02:58]} 2. Nc3 {[%clk 0:02:59]}  Nc6 {[%clk 0:02:56]} 3. Bb5 {[%clk 0:02:59]}  g6 {[%clk 0:02:52]} 4. f4 {[%clk 0:02:58]}  Bg7 {[%clk 0:02:52]} 5. Nf3 {[%clk 0:02:59]}  Nd4 {[%clk 0:02:38]} 6. Bc4 {[%clk 0:02:42]}  e6 {[%clk 0:02:38]} 7. O-O {[%clk 0:02:40]}  Ne7 {[%clk 0:02:37]} 8. d3 {[%clk 0:02:38]}  d5 {[%clk 0:02:29]} 9. Bb3 {[%clk 0:02:32]}  Nxb3 {[%clk 0:02:00]} 10. axb3 {[%clk 0:02:32]}  O-O {[%clk 0:02:00]} 11. Qe1 {[%clk 0:02:25]}  f5 {[%clk 0:01:58]} 12. Qh4 {[%clk 0:02:18]}  Nc6 {[%clk 0:01:46]} 13. Ng5 {[%clk 0:01:44]}  h6 {[%clk 0:01:44]} 14. Nf3 {[%clk 0:01:44]}  Qxh4 {[%clk 0:01:36]} 15. Nxh4 {[%clk 0:01:45]}  Ne7 {[%clk 0:01:21]} 16. exd5 {[%clk 0:01:38]}  Bf6 {[%clk 0:00:52]} 17. d6 {[%clk 0:00:54]}  Bxh4 {[%clk 0:00:50]} 18. dxe7 {[%clk 0:00:55]}  Bxe7 {[%clk 0:00:50]} 19. Re1 {[%clk 0:00:47]}  Kf7 {[%clk 0:00:26]} 20. Be3 {[%clk 0:00:40]}  b6 {[%clk 0:00:25]} 21. d4 {[%clk 0:00:40]}  cxd4 {[%clk 0:00:16]} 22. Bxd4 {[%clk 0:00:41]}  Bb7 {[%clk 0:00:17]} 23. Nb5 {[%clk 0:00:38]}  Rfc8 {[%clk 0:00:10]} 24. c3 {[%clk 0:00:36]}  a6 {[%clk 0:00:09]} 25. Na3 {[%clk 0:00:33]}  b5 {[%clk 0:00:10]} 26. Nc2 {[%clk 0:00:31]}  Be4 {[%clk 0:00:09]} 27. Ne3 {[%clk 0:00:21]}  Bf6 {[%clk 0:00:08]} 28. Bxf6 {[%clk 0:00:20]}  Kxf6 {[%clk 0:00:08]} 29. b4 {[%clk 0:00:21]}  Rd8 {[%clk 0:00:07]} 30. Rad1 {[%clk 0:00:20]}  Ke7 {[%clk 0:00:05]} 31. Rxd8 {[%clk 0:00:19]}  Rxd8 {[%clk 0:00:05]} 32. Rd1 {[%clk 0:00:18]}  Rxd1+ {[%clk 0:00:05]} 33. Nxd1 {[%clk 0:00:19]}  e5 {[%clk 0:00:04]} 34. fxe5 {[%clk 0:00:18]}  Ke6 {[%clk 0:00:05]} 35. Kf2 {[%clk 0:00:14]}  Kxe5 {[%clk 0:00:05]} 36. Ke3 {[%clk 0:00:14]}  g5 {[%clk 0:00:05]} 37. g3 {[%clk 0:00:12]}  f4+ {[%clk 0:00:05]} 38. gxf4+ {[%clk 0:00:12]}  gxf4+ {[%clk 0:00:06]} 39. Kf2 {[%clk 0:00:13]}  Bc2 {[%clk 0:00:04]} 40. Ke2 {[%clk 0:00:12]}  Bxd1+ {[%clk 0:00:04]} 41. Kxd1 {[%clk 0:00:13]}  Ke4 {[%clk 0:00:04]} 42. Ke2 {[%clk 0:00:13]}  h5 {[%clk 0:00:02]} 43. h4 {[%clk 0:00:10]}  f3+ {[%clk 0:00:00]} 44. Kf2 {[%clk 0:00:11]} 1-0


[Site "https://www.chess.com"]

[Event "Titled Tuesday Blitz September 27 Early 2022"]
[White "Schekachikhin, Maksim"]
[Black "Vogel, Roven"]
[WhiteFideId "24177830"]
[BlackFideId "12908088"]
[WhiteElo "2226"]
[BlackElo "2501"]
[Result "0-1"]
[Round "02"]
[TimeControl "180+1"]
[Date "2022.09.27"]
[WhiteClock "0:01:25"]
[BlackClock "0:01:10"]

1. b3 {[%clk 0:02:59]}  d5 {[%clk 0:02:59]} 2. Bb2 {[%clk 0:03:00]}  Bf5 {[%clk 0:02:59]} 3. d3 {[%clk 0:03:00]}  e6 {[%clk 0:03:00]} 4. Nd2 {[%clk 0:03:00]}  Nf6 {[%clk 0:03:00]} 5. g3 {[%clk 0:03:01]}  Be7 {[%clk 0:03:00]} 6. Bg2 {[%clk 0:03:01]}  O-O {[%clk 0:03:00]} 7. e4 {[%clk 0:03:02]}  Bg6 {[%clk 0:02:59]} 8. Nh3 {[%clk 0:02:59]}  Bh5 {[%clk 0:02:54]} 9. Qc1 {[%clk 0:02:54]}  dxe4 {[%clk 0:02:43]} 10. dxe4 {[%clk 0:02:53]}  Nc6 {[%clk 0:02:32]} 11. Nf4 {[%clk 0:02:52]}  Bg6 {[%clk 0:02:28]} 12. Nxg6 {[%clk 0:02:45]}  hxg6 {[%clk 0:02:29]} 13. O-O {[%clk 0:02:45]}  Bc5 {[%clk 0:02:23]} 14. a3 {[%clk 0:02:44]}  Bd4 {[%clk 0:02:19]} 15. c3 {[%clk 0:02:44]}  Bc5 {[%clk 0:02:14]} 16. b4 {[%clk 0:02:44]}  Be7 {[%clk 0:02:13]} 17. Qc2 {[%clk 0:02:43]}  Ne5 {[%clk 0:02:08]} 18. Rad1 {[%clk 0:02:42]}  Qd3 {[%clk 0:02:05]} 19. Qc1 {[%clk 0:02:41]}  Rad8 {[%clk 0:02:02]} 20. c4 {[%clk 0:02:41]}  Nc6 {[%clk 0:01:55]} 21. e5 {[%clk 0:02:31]}  Ng4 {[%clk 0:01:52]} 22. Ne4 {[%clk 0:02:31]}  Qb3 {[%clk 0:01:50]} 23. Nd2 {[%clk 0:02:19]}  Qa4 {[%clk 0:01:42]} 24. Rfe1 {[%clk 0:02:12]}  Bg5 {[%clk 0:01:16]} 25. f4 {[%clk 0:02:01]}  Be7 {[%clk 0:01:15]} 26. h3 {[%clk 0:01:51]}  Nh6 {[%clk 0:01:15]} 27. g4 {[%clk 0:01:51]}  a5 {[%clk 0:01:12]} 28. b5 {[%clk 0:01:26]}  Nd4 {[%clk 0:01:11]} 29. Ne4 {[%clk 0:01:25]}  Ne2+ {[%clk 0:01:10]} 0-1


[Site "https://www.chess.com"]

[Event "Titled Tuesday Blitz September 27 Early 2022"]
[White "Seifert, Henryk"]
[Black "Rangel, Daniel"]
[WhiteFideId "1100963"]
[BlackFideId "2124475"]
[WhiteElo "2120"]
[BlackElo "2225"]
[Result "0-1"]
[Round "02"]
[TimeControl "180+1"]
[Date "2022.09.27"]
[WhiteClock "0:00:31"]
[BlackClock "0:01:22"]

1. e4 {[%clk 0:03:00]}  c5 {[%clk 0:02:58]} 2. Nf3 {[%clk 0:03:00]}  g6 {[%clk 0:02:58]} 3. c3 {[%clk 0:03:00]}  Bg7 {[%clk 0:02:58]} 4. d4 {[%clk 0:03:00]}  cxd4 {[%clk 0:02:59]} 5. cxd4 {[%clk 0:03:00]}  d5 {[%clk 0:02:59]} 6. e5 {[%clk 0:02:59]}  Bg4 {[%clk 0:02:59]} 7. Nbd2 {[%clk 0:02:57]}  e6 {[%clk 0:02:55]} 8. h3 {[%clk 0:02:57]}  Bxf3 {[%clk 0:02:54]} 9. Nxf3 {[%clk 0:02:58]}  Ne7 {[%clk 0:02:54]} 10. Be2 {[%clk 0:02:43]}  O-O {[%clk 0:02:53]} 11. O-O {[%clk 0:02:40]}  Nbc6 {[%clk 0:02:50]} 12. Bg5 {[%clk 0:02:37]}  h6 {[%clk 0:02:48]} 13. Bf6 {[%clk 0:02:23]}  Bxf6 {[%clk 0:02:44]} 14. exf6 {[%clk 0:02:24]}  Nf5 {[%clk 0:02:43]} 15. g4 {[%clk 0:02:09]}  Nd6 {[%clk 0:02:43]} 16. Ne5 {[%clk 0:01:58]}  Qxf6 {[%clk 0:02:37]} 17. Nd7 {[%clk 0:01:56]}  Qxd4 {[%clk 0:02:37]} 18. Nxf8 {[%clk 0:01:50]}  Kxf8 {[%clk 0:02:33]} 19. Qc1 {[%clk 0:01:45]}  Kg7 {[%clk 0:02:22]} 20. Rd1 {[%clk 0:01:44]}  Qf6 {[%clk 0:02:21]} 21. Bd3 {[%clk 0:01:30]}  Ne5 {[%clk 0:02:14]} 22. f4 {[%clk 0:01:22]}  Nf3+ {[%clk 0:02:01]} 23. Kf2 {[%clk 0:01:14]}  Nd4 {[%clk 0:01:50]} 24. Qe3 {[%clk 0:01:07]}  Nc6 {[%clk 0:01:41]} 25. b3 {[%clk 0:00:57]}  g5 {[%clk 0:01:31]} 26. f5 {[%clk 0:00:50]}  exf5 {[%clk 0:01:27]} 27. Bxf5 {[%clk 0:00:49]}  Nxf5 {[%clk 0:01:27]} 28. gxf5 {[%clk 0:00:49]}  Qxf5+ {[%clk 0:01:26]} 29. Kg2 {[%clk 0:00:45]}  d4 {[%clk 0:01:25]} 30. Rxd4 {[%clk 0:00:36]}  Nxd4 {[%clk 0:01:23]} 31. Qxd4+ {[%clk 0:00:37]}  Qf6 {[%clk 0:01:23]} 32. Qe4 {[%clk 0:00:31]}  Qxa1 {[%clk 0:01:22]} 0-1


[Site "https://www.chess.com"]

[Event "Titled Tuesday Blitz September 27 Early 2022"]
[White "Sharifov, Mekhriddin"]
[Black "Ovezdurdyyeva, Jemal"]
[WhiteFideId "14701545"]
[BlackFideId "14001888"]
[WhiteElo "1540"]
[BlackElo "1946"]
[Result "1-0"]
[Round "02"]
[TimeControl "180+1"]
[Date "2022.09.27"]
[WhiteClock "0:00:29"]
[BlackClock "0:00:37"]

1. e4 {[%clk 0:03:00]}  d6 {[%clk 0:02:59]} 2. d4 {[%clk 0:03:00]}  Nf6 {[%clk 0:02:55]} 3. Nc3 {[%clk 0:02:58]}  g6 {[%clk 0:02:52]} 4. f4 {[%clk 0:02:58]}  c6 {[%clk 0:02:49]} 5. Nf3 {[%clk 0:02:58]}  b5 {[%clk 0:02:49]} 6. e5 {[%clk 0:02:57]}  dxe5 {[%clk 0:02:48]} 7. fxe5 {[%clk 0:02:55]}  Nd5 {[%clk 0:02:48]} 8. Ne4 {[%clk 0:02:48]}  Bg7 {[%clk 0:02:46]} 9. Bg5 {[%clk 0:02:47]}  f6 {[%clk 0:02:42]} 10. Bd2 {[%clk 0:02:37]}  O-O {[%clk 0:02:38]} 11. Bd3 {[%clk 0:02:36]}  Nd7 {[%clk 0:02:31]} 12. O-O {[%clk 0:02:33]}  fxe5 {[%clk 0:02:27]} 13. dxe5 {[%clk 0:02:26]}  Nxe5 {[%clk 0:02:27]} 14. Nxe5 {[%clk 0:02:26]}  Bxe5 {[%clk 0:02:28]} 15. Kh1 {[%clk 0:02:03]}  Bxb2 {[%clk 0:02:23]} 16. Rb1 {[%clk 0:02:01]}  Bg7 {[%clk 0:02:22]} 17. Ng5 {[%clk 0:01:43]}  e5 {[%clk 0:02:12]} 18. c4 {[%clk 0:01:36]}  Nf4 {[%clk 0:02:04]} 19. Be4 {[%clk 0:01:29]}  Qxg5 {[%clk 0:02:01]} 20. Bxc6 {[%clk 0:01:28]}  Rb8 {[%clk 0:01:50]} 21. g3 {[%clk 0:01:26]}  Bh3 {[%clk 0:01:30]} 22. gxf4 {[%clk 0:01:24]}  exf4 {[%clk 0:01:30]} 23. Rg1 {[%clk 0:01:21]}  Qc5 {[%clk 0:01:18]} 24. cxb5 {[%clk 0:01:17]}  f3 {[%clk 0:00:58]} 25. Bxf3 {[%clk 0:01:11]}  Rxb5 {[%clk 0:00:52]} 26. Rxb5 {[%clk 0:00:45]}  Qxb5 {[%clk 0:00:53]} 27. Be4 {[%clk 0:00:38]}  Qe5 {[%clk 0:00:48]} 28. Bc6 {[%clk 0:00:31]}  Rf2 {[%clk 0:00:45]} 29. Qb3+ {[%clk 0:00:29]}  Kh8 {[%clk 0:00:41]} 30. Qxh3 {[%clk 0:00:29]}  Rxd2 {[%clk 0:00:39]} 31. Qc8+ {[%clk 0:00:29]}  Bf8 {[%clk 0:00:37]} 32. Qxf8# {[%clk 0:00:29]} 1-0


[Site "https://www.chess.com"]

[Event "Titled Tuesday Blitz September 27 Early 2022"]
[White "Silva, Kevin Ranidu"]
[Black "Dowgird, Filip"]
[WhiteFideId "9935258"]
[BlackFideId "1121235"]
[WhiteElo "1626"]
[BlackElo "2215"]
[Result "0-1"]
[Round "02"]
[TimeControl "180+1"]
[Date "2022.09.27"]
[WhiteClock "0:00:14"]
[BlackClock "0:01:06"]

1. e4 {[%clk 0:02:59]}  d6 {[%clk 0:02:59]} 2. d4 {[%clk 0:02:59]}  Nf6 {[%clk 0:03:00]} 3. Nc3 {[%clk 0:02:58]}  c6 {[%clk 0:03:01]} 4. Nf3 {[%clk 0:02:57]}  Bg4 {[%clk 0:03:01]} 5. h3 {[%clk 0:02:56]}  Bh5 {[%clk 0:03:01]} 6. Be3 {[%clk 0:02:53]}  e6 {[%clk 0:03:01]} 7. Be2 {[%clk 0:02:53]}  d5 {[%clk 0:03:01]} 8. exd5 {[%clk 0:02:43]}  cxd5 {[%clk 0:03:02]} 9. Qd2 {[%clk 0:02:34]}  Nc6 {[%clk 0:03:00]} 10. g4 {[%clk 0:02:31]}  Bg6 {[%clk 0:03:00]} 11. Bb5 {[%clk 0:02:32]}  Ne4 {[%clk 0:02:58]} 12. Nxe4 {[%clk 0:02:06]}  Bxe4 {[%clk 0:02:57]} 13. Qe2 {[%clk 0:02:04]}  Qa5+ {[%clk 0:02:49]} 14. c3 {[%clk 0:02:03]}  h5 {[%clk 0:02:43]} 15. g5 {[%clk 0:02:01]}  a6 {[%clk 0:02:37]} 16. Bxc6+ {[%clk 0:02:00]}  bxc6 {[%clk 0:02:37]} 17. O-O {[%clk 0:02:00]}  Qb5 {[%clk 0:02:35]} 18. Qd1 {[%clk 0:01:53]}  Qxb2 {[%clk 0:02:32]} 19. Ne5 {[%clk 0:01:46]}  f6 {[%clk 0:02:31]} 20. Nxc6 {[%clk 0:01:41]}  Qb5 {[%clk 0:02:24]} 21. Nb4 {[%clk 0:01:30]}  a5 {[%clk 0:02:24]} 22. a4 {[%clk 0:01:25]}  Qc4 {[%clk 0:02:15]} 23. Na2 {[%clk 0:01:18]}  Bd6 {[%clk 0:02:13]} 24. Qd2 {[%clk 0:01:13]}  fxg5 {[%clk 0:02:09]} 25. Bxg5 {[%clk 0:01:12]}  O-O {[%clk 0:02:10]} 26. f4 {[%clk 0:01:04]}  Rf5 {[%clk 0:02:05]} 27. Nc1 {[%clk 0:01:02]}  Raf8 {[%clk 0:02:02]} 28. Ne2 {[%clk 0:01:00]}  h4 {[%clk 0:01:37]} 29. Rf2 {[%clk 0:00:35]}  e5 {[%clk 0:01:36]} 30. Raf1 {[%clk 0:00:29]}  exd4 {[%clk 0:01:29]} 31. Nxd4 {[%clk 0:00:27]}  Bc5 {[%clk 0:01:23]} 32. Nxf5 {[%clk 0:00:20]}  Rxf5 {[%clk 0:01:22]} 33. Kh2 {[%clk 0:00:20]}  Qxa4 {[%clk 0:01:15]} 34. Re2 {[%clk 0:00:19]}  Qc4 {[%clk 0:01:12]} 35. Qb2 {[%clk 0:00:18]}  Bd6 {[%clk 0:01:09]} 36. Ref2 {[%clk 0:00:17]}  Rxg5 {[%clk 0:01:09]} 37. Qb6 {[%clk 0:00:16]}  Rg6 {[%clk 0:01:08]} 38. Qd8+ {[%clk 0:00:16]}  Kh7 {[%clk 0:01:07]} 39. Qxh4+ {[%clk 0:00:14]}  Rh6 {[%clk 0:01:07]} 40. Qg5 {[%clk 0:00:14]}  Qxc3 {[%clk 0:01:06]} 41. Rg1 {[%clk 0:00:14]}  Qxh3# {[%clk 0:01:06]} 0-1


[Site "https://www.chess.com"]